bitfinex-derivatives/quotes_ETHF0:USTF0_20250902
["timestamp","ask_amount","ask_price","bid_price","bid_amount"]
[1756833066795,0.711,4296.6,4296.5,0.242]
[1756833067390,0.4075,4296.3,4296.2,3.2078]
[1756833067583,0.4075,4296.1,4296.0,0.18755868]
[1756833067788,0.711,4296.1,4296.0,0.18755868]
[1756833067987,0.711,4295.8,4295.7,3.2078]
[1756833068190,0.711,4295.8,4295.7,2.8853]
[1756833069392,0.3035,4295.7,4295.2,3.2078]
[1756833069594,0.711,4295.3,4295.2,3.2078]
[1756833069985,0.4075,4295.3,4295.2,0.2133]
[1756833070695,0.711,4295.3,4295.2,0.2133]
[1756833070896,0.4075,4295.3,4295.2,0.7322]
[1756833071394,0.4075,4295.3,4295.2,4.182]
[1756833071695,0.3181,4295.6,4295.2,4.182]
[1756833071696,0.7226,4295.6,4295.5,0.7128]
[1756833072296,3.4498,4296.3,4295.5,0.7128]
[1756833072297,0.3181,4296.1,4295.5,0.7128]
[1756833072495,0.7226,4295.7,4295.6,0.5047]
[1756833072699,0.4045,4295.7,4295.4,0.242]
[1756833072899,0.1939,4295.3,4295.2,3.6184]
[1756833073202,0.7226,4295.3,4295.2,0.7128]
[1756833073497,0.7226,4295.3,4295.2,0.6526]
[1756833073701,0.7226,4295.3,4295.2,0.9548]
[1756833073892,0.7226,4295.3,4295.2,0.7128]
[1756833074295,0.7226,4295.3,4295.2,0.9548]
[1756833074691,0.7226,4295.3,4295.2,0.7128]
[1756833074897,0.4045,4295.3,4295.1,0.242]
[1756833075094,0.7226,4295.2,4295.0,1.0]
[1756833075297,0.7226,4295.1,4295.0,1.0]
[1756833076702,0.7226,4295.1,4295.0,1.5047]
[1756833077201,0.7226,4295.1,4295.0,1.2025]
[1756833077594,0.7226,4295.1,4295.0,1.0]
[1756833078096,4.7226,4295.1,4295.0,0.3419]
[1756833078298,5.19743,4295.1,4295.0,0.3419]
[1756833078989,5.23796808,4295.1,4295.0,0.3419]
[1756833079193,0.99596808,4295.1,4295.0,0.3419]
[1756833079397,0.95543,4295.1,4295.0,0.3419]
[1756833079602,0.9646,4295.1,4295.0,0.3419]
[1756833080296,0.512,4295.1,4295.0,0.3419]
[1756833080697,0.754,4295.1,4295.0,0.3419]
[1756833081093,0.4359,4295.1,4295.0,0.6441]
[1756833081291,0.4359,4295.1,4295.0,0.3419]
[1756833082293,4.4359,4295.1,4295.0,0.3419]
[1756833082698,4.242,4295.1,4295.0,0.3419]
[1756833082900,5.13125353,4295.1,4295.0,0.3419]
[1756833083207,0.3024,4294.9,4292.5,0.1249]
[1756833083404,3.2078,4293.1,4292.6,0.18526948]
[1756833083607,3.2078,4293.9,4293.0,0.1249]
[1756833083906,0.242,4293.8,4293.0,0.1249]
[1756833084106,0.3181,4293.7,4293.0,0.3419]
[1756833084308,0.3181,4293.7,4292.5,0.31002002]
[1756833084509,3.2078,4293.4,4292.8,0.51893856]
[1756833084704,0.242,4293.3,4292.8,0.17703856]
[1756833084903,0.3181,4293.2,4292.8,0.17703856]
[1756833085810,3.5259,4293.4,4292.8,0.17703856]
[1756833086008,0.242,4293.3,4292.9,0.3022]
[1756833086209,0.3181,4293.2,4292.8,0.17703856]
[1756833086503,3.5259,4292.9,4292.8,0.47923856]
[1756833086712,3.4498,4292.9,4292.8,0.47923856]
[1756833087104,3.7679,4292.9,4292.8,0.17703856]
[1756833087307,3.2078,4292.9,4292.8,0.47923856]
[1756833087912,0.242,4293.2,4293.0,0.1249]
[1756833088213,0.242,4293.2,4293.1,0.3022]
[1756833088710,0.5601,4293.2,4292.8,0.17703856]
[1756833088902,0.242,4293.2,4292.8,0.47923856]
[1756833089105,3.2078,4292.9,4292.8,0.47923856]
[1756833089706,3.5259,4292.9,4292.8,0.47923856]
[1756833090101,0.242,4293.3,4292.8,4.17703856]
[1756833090307,0.61705547,4293.2,4292.9,0.3419]
[1756833090512,0.242,4293.3,4292.8,0.47923856]
[1756833090812,3.2078,4292.9,4292.8,0.47923856]
[1756833092813,3.2078,4293.4,4292.9,0.3022]
[1756833093114,1.17747906,4293.3,4293.0,0.3022]
[1756833093310,0.3181,4293.1,4292.9,0.6441]
[1756833093513,3.2078,4293.4,4292.8,0.17703856]
[1756833093514,0.85937906,4293.0,4292.8,0.17703856]
[1756833093714,4.14327906,4292.9,4292.8,0.17703856]
[1756833094518,4.38527906,4292.9,4292.8,0.47923856]
[1756833094922,3.82517906,4292.9,4292.8,0.47923856]
[1756833095124,4.06717906,4292.9,4292.8,0.47923856]
[1756833096023,3.82517906,4292.9,4292.8,0.47923856]
[1756833096217,0.61737906,4292.9,4292.8,0.47923856]
[1756833096423,0.242,4293.0,4292.9,0.3022]
[1756833096611,0.242,4293.0,4292.9,0.6441]
[1756833097129,0.8605674,4293.0,4292.9,0.6441]
[1756833097917,0.6185674,4293.0,4292.9,0.6441]
[1756833098112,0.242,4293.1,4292.9,0.6441]
[1756833098320,0.6185674,4293.0,4292.9,0.3022]
[1756833098716,0.6185674,4293.0,4292.9,1.0547]
[1756833099026,0.8124674,4293.0,4292.9,1.0547]
[1756833099426,4.2308674,4293.0,4292.9,1.0547]
[1756833099823,0.3181,4292.9,4292.8,0.17703856]
[1756833100124,1.3411674,4292.9,4292.8,0.17703856]
[1756833101322,0.9366674,4292.9,4292.8,0.17703856]
[1756833102315,6.28504965,4292.9,4291.8,3.2078]
[1756833102522,0.1658,4292.2,4292.0,0.3184]
[1756833102728,0.86198845,4292.1,4292.0,0.3184]
[1756833103028,1.02778845,4292.1,4291.4,0.3184]
[1756833103215,3.2078,4291.8,4291.2,0.3184]
[1756833103419,0.86198845,4291.7,4291.2,0.3184]
[1756833103627,0.61998845,4291.6,4291.3,0.3419]
[1756833103924,0.3996,4291.6,4291.5,0.5177]
[1756833104122,0.8243459,4291.6,4291.5,0.7222]
[1756833104328,0.6199459,4291.6,4291.5,1.1816]
[1756833105226,1.86920325,4291.6,4291.5,1.1816]
[1756833105429,0.6199459,4291.6,4291.5,1.1816]
[1756833106126,1.86920325,4291.6,4291.5,1.1816]
[1756833106628,0.6199459,4291.6,4291.5,5.1816]
[1756833107522,1.24925735,4292.1,4291.5,5.07272]
[1756833107723,1.24925735,4292.2,4292.1,0.7222]
[1756833108427,0.4464,4292.4,4292.3,0.4038]
[1756833108622,3.8494,4292.4,4292.3,0.3184]
[1756833108824,4.0152,4292.4,4291.5,0.1175]
[1756833109028,1.45693353,4292.1,4292.0,0.1993]
[1756833109226,0.4464,4292.1,4292.0,0.5177]
[1756833109526,1.89428769,4292.1,4292.0,0.3184]
[1756833109728,0.5654,4291.5,4291.4,0.3184]
[1756833109932,0.3996,4291.5,4291.4,0.5177]
[1756833110132,1.45719593,4291.5,4291.4,0.7222]
[1756833110326,1.69919593,4291.5,4291.4,0.7222]
[1756833110526,1.49479593,4291.5,4291.4,0.7222]
[1756833110726,1.25279593,4291.6,4291.5,0.8397]
[1756833111433,1.25279593,4291.8,4291.6,0.3184]
[1756833111633,1.25279593,4291.9,4291.8,0.4038]
[1756833111832,1.25279593,4292.0,4291.8,0.4038]
[1756833112033,1.25279593,4292.0,4291.9,0.7222]
[1756833112334,0.4464,4292.1,4292.0,0.3184]
[1756833112526,0.4464,4292.1,4292.0,0.5177]
[1756833112727,0.6416,4292.1,4292.0,0.5177]
[1756833113130,0.3996,4292.1,4292.0,0.5177]
[1756833113329,0.6416,4292.1,4292.0,0.7222]
[1756833114339,1.89558097,4292.1,4292.0,0.7222]
[1756833115436,0.6416,4292.1,4292.0,0.7222]
[1756833116730,1.25398097,4292.3,4292.0,0.5213]
[1756833116935,3.4498,4292.4,4292.2,0.3184]
[1756833117237,3.4498,4292.4,4292.3,0.4038]
[1756833117442,3.4498,4292.4,4292.3,0.7222]
[1756833117738,3.6542,4292.4,4292.3,0.7222]
[1756833119036,4.0152,4292.4,4291.6,0.3184]
[1756833119233,5.10338097,4292.4,4291.6,0.3184]
[1756833119438,3.4498,4292.4,4291.7,0.3184]
[1756833119644,0.61705149,4292.3,4291.7,0.3184]
[1756833119835,0.2044,4291.8,4291.7,0.5177]
[1756833120132,0.3996,4291.8,4291.7,0.29122727]
[1756833120339,1.01665149,4291.8,4291.7,0.80892727]
[1756833120637,0.61705149,4291.8,4291.7,0.7222]
[1756833121339,1.01665149,4291.8,4291.7,0.7222]
[1756833121535,1.42445149,4291.8,4291.4,3.2078]
[1756833121739,0.5654,4291.6,4291.5,0.3184]
[1756833121940,1.18245149,4291.6,4291.5,0.3184]
[1756833122840,1.18245149,4291.6,4291.0,0.1249]
[1756833123040,0.2044,4291.2,4291.1,0.5177]
[1756833123240,0.3996,4291.2,4291.1,0.5177]
[1756833125944,1.18135517,4291.2,4290.6,0.3184]
[1756833126143,0.2044,4290.7,4290.6,0.5177]
[1756833126338,0.2044,4290.7,4290.6,0.7222]
[1756833126539,0.3996,4290.7,4290.6,0.7222]
[1756833126742,3.2078,4291.3,4290.6,0.4038]
[1756833126939,1.06354063,4291.2,4291.1,0.5177]
[1756833127237,1.25874063,4291.2,4291.1,0.7222]
[1756833127539,1.42334063,4291.2,4290.6,0.3184]
[1756833127735,0.3996,4290.7,4290.6,0.5177]
[1756833128131,0.3996,4290.7,4290.6,0.7222]
[1756833128334,0.242,4291.2,4290.6,0.4038]
[1756833128637,0.242,4291.2,4290.5,0.1175]
[1756833128638,1.25882995,4291.1,4291.0,0.5177]
[1756833129042,1.42342995,4291.1,4291.0,0.3184]
[1756833129241,1.42342995,4291.1,4291.0,0.7222]
[1756833129242,1.01682995,4291.1,4291.0,0.7222]
[1756833129439,1.06362995,4291.1,4291.0,0.8397]
[1756833129640,0.4464,4291.1,4291.0,0.8397]
[1756833130035,3.2078,4291.3,4291.0,0.5213]
[1756833130241,3.2078,4291.3,4291.2,0.7222]
[1756833130838,3.2078,4291.8,4291.3,0.3184]
[1756833131038,0.6174035,4291.7,4291.3,0.4038]
[1756833131239,3.2078,4291.8,4291.7,0.4081]
[1756833131545,4.06727289,4291.8,4291.7,0.7138]
[1756833131845,4.28027289,4291.8,4291.7,0.7138]
[1756833132245,3.6628,4291.8,4291.7,0.7138]
[1756833132551,4.28034424,4291.8,4291.7,0.7138]
[1756833132746,4.65934424,4291.8,4291.1,0.3057]
[1756833132946,0.213,4291.2,4291.1,0.7138]
[1756833133243,3.4208,4291.8,4291.7,0.2057]
[1756833133445,3.2078,4291.8,4291.7,0.7138]
[1756833133949,3.7998,4291.8,4291.7,0.3057]
[1756833134136,3.8766,4291.8,4291.7,0.3057]
[1756833135047,4.0418,4291.8,4291.7,0.3057]
[1756833135941,4.0418,4291.8,4291.2,0.3057]
[1756833137247,0.213,4291.2,4291.1,0.7138]
[1756833137748,0.4268,4291.2,4291.1,0.7138]
[1756833138148,0.592,4291.2,4290.6,0.3057]
[1756833139844,0.4268,4291.2,4291.1,0.7138]
[1756833140150,3.6628,4291.3,4291.2,0.7138]
[1756833140850,3.6628,4291.3,4291.2,1.01286982]
[1756833141254,3.8766,4291.3,4291.2,1.01286982]
[1756833141552,3.8766,4291.3,4290.0,0.1175]
[1756833141553,4.65785636,4291.3,4290.6,0.3057]
[1756833141748,3.6346,4291.3,4291.2,0.5114]
[1756833142054,3.7998,4291.3,4290.6,0.3057]
[1756833142759,3.6346,4290.7,4290.1,0.3057]
[1756833142955,3.7998,4290.2,4289.6,0.3057]
[1756833143154,0.6688,4290.1,4290.0,0.5114]
[1756833143355,3.2078,4290.2,4290.0,0.7138]
[1756833143557,3.2078,4290.2,4290.1,0.7138]
[1756833144056,3.2078,4290.2,4290.1,1.0224649]
[1756833144257,3.4208,4290.2,4290.1,1.0224649]
[1756833144655,0.1652,4290.9,4290.2,0.3057]
[1756833144656,3.2078,4290.8,4290.2,0.3057]
[1756833144857,1.28445505,4290.7,4290.6,0.5114]
[1756833145258,1.44965505,4290.7,4290.1,0.3057]
[1756833145457,0.4268,4290.3,4290.2,0.81990717]
[1756833145662,0.6688,4290.3,4290.2,0.81990717]
[1756833146058,0.6688,4290.3,4290.2,0.5114]
[1756833146658,0.6688,4290.3,4290.2,0.3057]
[1756833146959,4.0418,4290.3,4289.6,0.3057]
[1756833147161,3.8766,4290.3,4289.6,0.3057]
[1756833148662,0.242,4290.2,4289.6,0.3057]
[1756833149262,0.6688,4290.2,4290.1,0.2057]
[1756833149465,0.6688,4290.2,4290.1,0.5114]
[1756833149663,0.6688,4290.2,4288.5,0.1186]
[1756833149664,0.4268,4289.5,4289.4,0.5114]
[1756833150265,3.2078,4289.8,4289.5,0.3057]
[1756833150463,3.4498,4289.8,4289.7,0.7138]
[1756833151067,3.2078,4289.8,4289.7,0.7138]
[1756833151270,0.242,4290.0,4289.7,0.4081]
[1756833151470,0.213,4289.9,4289.8,0.2057]
[1756833151765,3.2078,4290.3,4289.9,0.3057]
[1756833151976,0.455,4290.0,4289.9,0.7138]
[1756833152269,0.6688,4290.0,4289.9,0.3057]
[1756833152462,0.834,4290.0,4289.9,0.3057]
[1756833152661,0.6688,4290.0,4289.9,0.5114]
[1756833152862,3.2078,4290.3,4289.9,0.4081]
[1756833153062,3.2078,4290.3,4290.2,0.3057]
[1756833153265,3.2078,4290.3,4290.2,0.7138]
[1756833153862,0.242,4290.6,4290.5,0.4081]
[1756833154064,0.455,4290.6,4290.5,0.7138]
[1756833154367,3.2078,4290.9,4290.5,0.5267]
[1756833154565,3.2078,4290.9,4290.8,0.4081]
[1756833154765,3.2078,4290.9,4290.8,0.7138]
[1756833155364,3.6346,4290.9,4290.0,0.1186]
[1756833155564,3.7998,4290.9,4290.1,0.3057]
[1756833155968,3.6346,4290.9,4290.1,0.3057]
[1756833156973,3.6346,4290.9,4290.1,0.5114]
[1756833156974,0.213,4290.2,4290.1,0.5114]
[1756833157267,0.592,4290.2,4289.6,0.3057]
[1756833157670,0.1652,4290.1,4289.6,0.3057]
[1756833157872,0.4268,4289.7,4289.6,0.3057]
[1756833158168,0.834,4289.7,4289.1,0.3057]
[1756833158773,0.242,4289.6,4288.8,3.2078]
[1756833158970,0.213,4289.6,4289.5,0.7138]
[1756833159170,3.2078,4289.8,4289.7,0.4081]
[1756833159371,3.2078,4289.8,4289.7,0.7138]
[1756833159767,0.242,4290.2,4289.7,0.7138]
[1756833159972,3.2078,4290.3,4290.2,0.4081]
[1756833160277,3.4208,4290.3,4290.2,0.7138]
[1756833160574,3.6346,4290.3,4290.2,0.7138]
[1756833160773,3.6346,4290.3,4290.2,0.3057]
[1756833160774,3.2078,4290.3,4290.2,0.3057]
[1756833161274,0.242,4290.5,4290.2,0.3057]
[1756833161475,3.2078,4290.8,4289.5,0.1186]
[1756833161476,0.1655,4290.3,4289.5,0.1186]
[1756833161680,3.3733,4290.8,4289.6,0.3142]
[1756833161868,0.4075,4290.4,4289.6,0.3142]
[1756833162068,0.1655,4290.2,4289.6,0.3142]
[1756833162268,0.242,4290.1,4289.6,0.3142]
[1756833162472,0.242,4290.1,4289.1,0.3142]
[1756833162473,0.1655,4290.0,4289.1,0.3142]
[1756833163076,3.2078,4290.3,4289.1,0.3142]
[1756833163277,3.2078,4290.3,4289.2,0.23312]
[1756833163478,0.242,4290.2,4289.3,0.3142]
[1756833163671,3.2078,4290.3,4289.3,0.3142]
[1756833163868,3.4498,4290.3,4289.3,0.3142]
[1756833164273,3.6153,4290.3,4289.3,0.3142]
[1756833164472,0.1655,4290.2,4289.3,0.3142]
[1756833164669,0.242,4290.1,4289.3,0.3142]
[1756833165967,3.2078,4290.3,4289.3,0.3142]
[1756833166170,3.2078,4290.3,4289.5,0.1281]
[1756833166374,3.2078,4290.3,4289.6,0.3142]
[1756833167977,3.2078,4290.8,4290.1,0.3142]
[1756833168178,3.2078,4290.8,4290.5,0.1281]
[1756833168483,3.2078,4291.3,4290.6,0.3142]
[1756833168976,3.2078,4291.8,4291.1,3.2078]
[1756833169171,3.2078,4291.8,4291.5,0.1281]
[1756833169482,3.2078,4291.8,4291.6,0.3142]
[1756833169676,3.2078,4291.8,4291.5,0.1281]
[1756833169874,3.2078,4291.8,4291.1,3.2078]
[1756833169875,3.2078,4291.8,4291.2,0.3142]
[1756833170177,3.2078,4291.8,4291.2,0.54722]
[1756833170373,3.2078,4291.8,4291.2,0.3142]
[1756833172972,3.2078,4291.8,4290.1,43.30815129]
[1756833172973,0.1655,4291.7,4290.7,0.3142]
[1756833173172,0.1655,4291.5,4290.7,0.3142]
[1756833174181,3.3733,4291.8,4290.7,0.3142]
[1756833174574,0.241,4291.7,4290.7,0.3142]
[1756833175580,3.3733,4291.8,4290.8,0.23304]
[1756833175780,3.2078,4291.8,4291.1,3.2078]
[1756833175978,3.2078,4291.8,4291.2,0.3142]
[1756833176279,3.2078,4291.8,4291.5,0.1281]
[1756833176474,3.2078,4291.8,4291.6,0.3142]
[1756833176676,3.2078,4291.8,4291.5,0.1281]
[1756833176877,3.2078,4291.8,4291.1,3.2078]
[1756833177183,3.2078,4291.8,4291.2,0.5552]
[1756833177684,3.2078,4291.8,4291.2,0.241]
[1756833178177,3.2078,4291.8,4291.3,0.3142]
[1756833178379,3.2078,4291.8,4291.2,0.241]
[1756833178582,3.2078,4291.8,4291.3,0.3142]
[1756833179382,3.2078,4291.8,4291.2,0.241]
[1756833179580,0.1655,4291.7,4291.0,0.3142]
[1756833179883,0.4065,4291.6,4291.0,0.3142]
[1756833180375,3.2078,4291.8,4291.0,0.4423]
[1756833180575,3.2078,4291.8,4291.1,0.3142]
[1756833180978,3.2078,4291.8,4291.2,0.3142]
[1756833181379,3.6285,4291.8,4291.7,0.5077]
[1756833181780,3.6285,4291.8,4291.7,0.3142]
[1756833182991,3.6285,4291.8,4291.7,0.5077]
[1756833183286,3.2078,4292.4,4292.3,0.4035]
[1756833183481,3.2078,4292.4,4292.3,0.7177]
[1756833183680,3.4157,4292.4,4292.3,0.7177]
[1756833183880,3.2078,4292.4,4292.3,0.3142]
[1756833185281,3.3733,4293.0,4292.3,0.3142]
[1756833185790,3.2078,4293.0,4292.3,0.3142]
[1756833186086,0.1653,4292.9,4292.0,0.241]
[1756833186286,0.1653,4291.9,4291.6,3.522]
[1756833186477,0.4207,4292.0,4291.6,3.522]
[1756833186478,0.4207,4291.7,4291.6,3.522]
[1756833186681,0.4207,4291.7,4291.6,3.7155]
[1756833187286,0.586,4291.7,4291.6,3.2078]
[1756833187483,0.4207,4291.7,4291.6,3.522]
[1756833187682,3.2078,4292.5,4292.1,0.3142]
[1756833187884,0.241,4292.7,4292.1,0.3142]
[1756833188392,0.586,4292.2,4292.1,0.3142]
[1756833188685,0.586,4292.2,4291.6,3.2078]
[1756833188686,0.586,4291.7,4291.6,3.2078]
[1756833189191,0.2079,4291.0,4290.9,0.5077]
[1756833189485,0.136,4291.7,4291.1,0.3142]
[1756833189690,0.2079,4291.7,4291.6,0.5077]
[1756833190086,3.2078,4292.0,4291.6,0.4035]
[1756833190388,0.1653,4292.5,4292.0,0.5077]
[1756833190389,0.6617,4292.1,4292.0,0.5077]
[1756833190589,3.6285,4292.1,4292.0,0.5077]
[1756833190794,3.6285,4292.1,4292.0,0.3142]
[1756833190984,3.7938,4292.1,4292.0,0.3142]
[1756833191385,3.6285,4292.1,4292.0,0.5288]
[1756833191790,3.4157,4292.1,4292.0,0.7417]
[1756833191993,3.6074,4292.6,4292.5,0.2146]
[1756833192288,3.6074,4292.6,4292.5,0.318]
[1756833192289,3.7725,4292.6,4292.5,0.318]
[1756833192491,3.7725,4292.6,4292.0,0.1244]
[1756833192887,3.7725,4292.6,4292.1,0.318]
[1756833193089,3.7725,4292.6,4292.0,0.1244]
[1756833193285,3.6074,4292.6,4292.0,0.1244]
[1756833193690,3.6074,4292.6,4292.1,0.318]
[1756833193892,3.7725,4292.6,4292.1,0.318]
[1756833194091,0.1651,4292.5,4291.6,0.318]
[1756833194592,0.2048,4291.7,4291.6,0.7455]
[1756833194792,0.157,4292.4,4291.7,0.318]
[1756833195097,0.6406,4292.5,4292.4,0.5326]
[1756833195491,0.8057,4292.5,4292.4,0.318]
[1756833196489,0.6406,4292.5,4292.4,0.7455]
[1756833196895,0.3996,4292.5,4292.4,0.7455]
[1756833197299,0.3996,4292.5,4291.6,0.41938]
[1756833197300,0.5647,4292.5,4291.7,0.241]
[1756833197596,0.5647,4292.5,4291.8,0.318]
[1756833198695,0.61664556,4292.4,4291.8,0.318]
[1756833198993,3.6074,4291.9,4291.3,3.5258]
[1756833199202,3.8484,4291.9,4291.3,3.5258]
[1756833199697,3.8484,4291.9,4291.3,3.2078]
[1756833199892,0.1948,4291.5,4291.4,0.318]
[1756833200200,0.1948,4291.5,4291.4,0.5326]
[1756833200201,0.3996,4291.5,4291.4,0.5326]
[1756833200396,3.2078,4291.9,4291.4,0.7455]
[1756833200594,3.2078,4291.9,4291.3,3.4224]
[1756833200595,0.1948,4291.6,4291.3,3.4224]
[1756833200788,0.2048,4291.4,4291.3,3.7404]
[1756833201289,0.2048,4291.4,4291.3,0.5326]
[1756833202299,0.2048,4291.4,4291.3,0.7455]
[1756833203095,3.2078,4291.9,4291.4,0.318]
[1756833203400,3.4126,4291.9,4291.8,0.7455]
[1756833203791,3.2078,4291.9,4291.8,0.7455]
[1756833203995,3.2078,4292.6,4292.5,0.5519]
[1756833204196,3.82449413,4292.6,4292.5,0.8699]
[1756833204393,3.6074,4292.6,4292.5,0.318]
[1756833204595,3.7725,4292.6,4292.5,0.318]
[1756833205504,3.6074,4292.6,4292.1,0.318]
[1756833206001,3.6074,4292.6,4292.5,0.7455]
[1756833206195,3.4126,4292.6,4292.5,0.7455]
[1756833206498,3.4126,4292.6,4292.5,0.8699]
[1756833206700,3.2078,4292.6,4292.5,0.8699]
[1756833206903,3.4126,4292.6,4292.5,0.8699]
[1756833207802,3.2078,4292.6,4292.5,0.8699]
[1756833207995,3.7725,4292.6,4292.5,0.318]
[1756833208198,0.3996,4292.0,4291.9,0.5326]
[1756833208399,3.2078,4292.6,4292.5,0.4275]
[1756833208603,4.22409698,4292.6,4292.5,0.318]
[1756833208802,4.38919698,4292.6,4292.5,0.318]
[1756833209005,4.38919698,4292.6,4291.9,0.318]
[1756833209209,0.2048,4292.0,4291.9,0.7455]
[1756833209901,3.6139,4292.6,4292.0,0.4424]
[1756833210095,1.01629781,4292.5,4292.4,0.5326]
[1756833210301,0.2048,4292.5,4292.4,0.7455]
[1756833210802,3.2078,4292.6,4292.5,0.7455]
[1756833211102,3.4126,4292.6,4292.5,0.7455]
[1756833212101,3.2078,4292.6,4292.5,0.7455]
[1756833212305,3.3729,4293.6,4293.0,0.5519]
[1756833212503,0.61664228,4293.5,4293.4,0.7455]
[1756833212703,3.2078,4293.6,4293.5,0.8699]
[1756833212909,3.2078,4294.4,4293.6,0.318]
[1756833213204,0.85751707,4294.3,4293.6,0.318]
[1756833213413,0.61651707,4294.2,4293.6,0.318]
[1756833213708,0.4458,4294.3,4294.2,0.2146]
[1756833213912,0.4458,4294.3,4294.2,0.5326]
[1756833214202,0.6406,4294.3,4294.2,0.5326]
[1756833214408,0.6406,4294.3,4294.2,0.318]
[1756833214610,0.8057,4294.3,4293.6,0.318]
[1756833216504,3.2078,4294.4,4294.2,0.4275]
[1756833216703,3.2078,4294.4,4294.0,0.1244]
[1756833216704,3.2078,4294.9,4294.4,0.318]
[1756833216904,0.4458,4294.8,4294.7,0.2146]
[1756833217109,0.4458,4294.8,4294.7,0.7455]
[1756833217409,0.2048,4294.8,4294.7,0.7455]
[1756833217805,3.2078,4294.9,4294.8,0.318]
[1756833218006,0.43569,4295.1,4294.8,0.7455]
[1756833218211,0.43569,4295.1,4295.0,0.5519]
[1756833218509,0.43569,4295.1,4295.0,0.8699]
[1756833219008,0.43569,4295.1,4295.0,4.8699]
[1756833220406,0.43569,4295.1,4295.0,0.8699]
[1756833220612,0.64049,4295.1,4295.0,0.9865]
[1756833220808,0.64049,4295.1,4295.0,1.1109]
[1756833221008,0.43569,4295.1,4295.0,1.1109]
[1756833221509,1.00419,4295.1,4294.7,0.241]
[1756833222107,1.00419,4295.1,4294.8,0.3088]
[1756833222312,1.00419,4295.1,4294.7,0.241]
[1756833222902,0.83929,4295.1,4294.8,0.3088]
[1756833223112,0.5713,4294.9,4294.8,0.3088]
[1756833223507,0.4064,4294.9,4294.8,0.7284]
[1756833223708,0.2076,4294.9,4294.8,0.7284]
[1756833224107,0.4064,4294.9,4294.8,0.7284]
[1756833225310,0.5713,4294.9,4294.0,0.1244]
[1756833225608,0.4064,4294.2,4294.1,0.3088]
[1756833225811,0.4064,4294.2,4294.1,0.5215]
[1756833226108,0.2076,4294.2,4294.1,0.7284]
[1756833226406,0.2076,4294.3,4294.2,0.5215]
[1756833226609,0.2076,4294.3,4293.5,0.3654]
[1756833226610,0.5713,4294.3,4293.6,0.5498]
[1756833226906,0.5713,4294.3,4293.6,0.3088]
[1756833227511,0.5713,4294.3,4293.6,0.7284]
[1756833227512,0.2076,4293.7,4293.6,0.7284]
[1756833227708,3.2078,4294.2,4293.7,0.3088]
[1756833228009,3.4154,4294.2,4294.1,0.5215]
[1756833228423,0.4064,4294.2,4293.6,0.3088]
[1756833228908,0.4064,4294.2,4294.1,0.2127]
[1756833229110,0.4064,4294.2,4294.1,0.7284]
[1756833229511,0.5713,4294.2,4293.6,0.3088]
[1756833229709,0.5713,4294.2,4294.1,0.5215]
[1756833229710,0.4064,4294.2,4294.1,0.5215]
[1756833229910,3.2078,4294.4,4294.1,0.4196]
[1756833230108,0.241,4294.6,4294.2,0.3088]
[1756833230314,0.6474,4294.6,4294.5,0.5215]
[1756833230509,0.4064,4294.6,4294.5,0.5215]
[1756833230714,0.5713,4294.6,4293.7,0.3088]
[1756833231010,3.2078,4294.4,4293.7,0.3088]
[1756833231508,3.2078,4294.4,4293.8,0.3088]
[1756833232011,0.4064,4293.9,4293.8,0.5215]
[1756833233213,4.5713,4293.9,4293.2,0.3088]
[1756833233510,0.4064,4293.3,4293.2,0.3088]
[1756833234106,0.4064,4293.3,4293.2,0.7284]
[1756833234313,0.2076,4293.3,4293.2,0.7284]
[1756833236119,0.5713,4293.3,4292.7,0.3088]
[1756833236616,0.4064,4293.3,4293.2,0.2127]
[1756833236814,3.2078,4293.7,4293.3,0.3088]
[1756833237018,3.2078,4293.7,4293.6,0.7284]
[1756833237219,0.241,4294.4,4293.7,0.3088]
[1756833238019,3.3727,4294.6,4293.7,0.3088]
[1756833238220,0.241,4294.5,4293.7,0.3088]
[1756833238417,3.3727,4294.6,4293.5,0.1265]
[1756833238418,3.2078,4294.6,4293.5,0.1265]
[1756833238622,3.2078,4294.6,4294.5,0.4353]
[1756833239417,3.2078,4294.6,4294.5,0.3088]
[1756833239614,3.2078,4294.6,4294.5,0.4353]
[1756833240314,3.6137,4294.6,4293.9,0.3088]
[1756833240617,3.2078,4294.6,4294.0,0.1265]
[1756833240817,3.2078,4294.6,4294.5,0.4353]
[1756833241316,3.2078,4294.6,4294.5,0.3088]
[1756833242423,3.2078,4294.6,4294.5,0.4353]
[1756833242922,0.43569,4295.1,4294.6,0.3088]
[1756833243119,0.43569,4295.1,4294.5,0.1265]
[1756833243328,0.60059,4295.1,4294.5,0.3088]
[1756833243621,0.83343,4295.1,4294.5,0.3088]
[1756833243816,0.241,4295.0,4294.0,0.1265]
[1756833244014,0.241,4295.0,4294.1,0.3088]
[1756833244213,0.60059,4295.1,4294.1,0.3088]
[1756833244524,0.67669,4295.1,4294.1,0.3088]
[1756833244721,0.67669,4295.1,4294.0,0.1265]
[1756833244722,0.43569,4295.1,4294.2,3.2078]
[1756833244927,0.43569,4295.1,4294.3,0.3088]
[1756833245329,0.1645,4295.0,4294.3,0.3088]
[1756833245627,0.43569,4295.1,4294.3,0.3088]
[1756833245828,0.67669,4295.1,4294.3,0.3088]
[1756833246220,0.43569,4295.1,4294.3,0.3088]
[1756833246728,0.1645,4295.0,4294.3,0.3088]
[1756833248829,0.2076,4294.4,4294.3,0.5215]